bitfinex/quotes_SOLUSD_20260208
["timestamp","ask_amount","ask_price","bid_price","bid_amount"]
[1770592159680,4.5,88.649,88.62,17.96024533]
[1770592159893,17.96024533,88.64,88.6,17.96024533]
[1770592160059,4.5,88.639,88.6,17.96024533]
[1770592160256,4.5,88.639,88.569,28.22629533]
[1770592160257,4.5,88.639,88.59,17.96024533]
[1770592160459,4.5,88.629,88.61,17.96024533]
[1770592160757,4.5,88.619,88.58,17.96024533]
[1770592160967,4.5,88.627,88.59,17.96024533]
[1770592161369,30.0,88.628,88.533,5.36086188]
[1770592161370,30.0,88.628,88.61,17.96024533]
[1770592161679,45.06,88.634,88.58,17.96024533]
[1770592161680,4.5,88.619,88.58,17.96024533]
[1770592161872,4.5,88.607,88.57,17.96024533]
[1770592162171,11.28566269,88.608,88.56,17.96024533]
[1770592162172,4.5,88.599,88.56,17.96024533]
[1770592162372,4.5,88.589,88.55,17.96024533]
[1770592163879,4.5,88.619,88.58,17.96024533]
[1770592164382,5.36086188,88.676,88.516,5.13032502]
[1770592164383,4.5,88.617,88.6,17.96024533]
[1770592164585,4.5,88.649,88.61,17.96024533]
[1770592164876,4.5,88.648,88.61,17.96024533]
[1770592165462,4.5,88.619,88.56,11.29168439]
[1770592165777,4.5,88.619,88.58,17.96024533]
[1770592166000,15.78429188,88.619,88.58,17.96024533]
[1770592166283,4.5,88.609,88.57,17.96024533]
[1770592166480,4.5,88.589,88.55,17.96024533]
[1770592166786,4.5,88.579,88.54,17.96024533]
[1770592166984,4.5,88.569,88.53,17.96024533]
[1770592167481,4.5,88.559,88.52,17.96024533]
[1770592167868,4.5,88.559,88.54,17.96024533]
[1770592168067,30.0,88.608,88.54,17.96024533]
[1770592168068,4.5,88.573,88.54,17.96024533]
[1770592168281,4.5,88.573,88.53,17.96024533]
[1770592168593,4.5,88.578,88.54,17.96024533]
[1770592168886,4.5,88.577,88.54,18.02352965]
[1770592169090,11.63047331,88.577,88.54,18.02352965]
[1770592169287,4.5,88.575,88.492,5.13032502]
[1770592169494,11.6320521,88.575,88.54,18.02352965]
[1770592169782,11.63146721,88.574,88.54,18.02352965]
[1770592169992,7.12917859,88.573,88.54,18.02352965]
[1770592170193,7.12917859,88.573,88.55,18.02352965]
[1770592170564,7.12917859,88.573,88.56,18.02352965]
[1770592171262,7.12858607,88.602,88.56,18.02352965]
[1770592171465,7.12858607,88.602,88.59,18.02352965]
[1770592173982,7.12858607,88.602,88.579,11.28929275]
[1770592174191,7.12858607,88.602,88.59,18.02352965]
[1770592174695,7.12858607,88.602,88.571,11.29028285]
[1770592174993,4.5,88.601,88.58,18.02352965]
[1770592175183,4.5,88.601,88.57,18.02352965]
[1770592175184,4.5,88.6,88.57,18.02352965]
[1770592175388,4.5,88.6,88.519,56.48469985]
[1770592175389,4.26694401,88.579,88.54,18.02352965]
[1770592175573,4.26694401,88.569,88.53,18.02352965]
[1770592175774,4.26694401,88.569,88.503,4.34185953]
[1770592175974,4.26694401,88.569,88.53,18.02352965]
[1770592176174,4.26694401,88.559,88.52,18.02352965]
[1770592176392,4.26694401,88.547,88.51,18.02352965]
[1770592176588,4.26694401,88.547,88.52,18.02352965]
[1770592177104,11.29330984,88.548,88.51,18.02352965]
[1770592177303,7.12455456,88.556,88.54,18.02352965]
[1770592177907,7.12455456,88.556,88.53,18.02352965]
[1770592178109,7.12455456,88.556,88.511,11.29803075]
[1770592178110,7.12455456,88.556,88.54,18.02352965]
[1770592178286,7.12455456,88.556,88.511,11.29803075]
[1770592178287,7.12455456,88.556,88.55,18.02352965]
[1770592178491,7.12455456,88.556,88.54,18.02352965]
[1770592178694,7.12455456,88.556,88.53,18.02352965]
[1770592178888,4.26694401,88.554,88.52,18.02352965]
[1770592179209,7.12784455,88.554,88.53,18.02352965]
[1770592179417,7.12784455,88.554,88.462,56.52093911]
[1770592179418,4.26694401,88.539,88.5,18.02352965]
[1770592179613,37.12175348,88.553,88.52,18.02352965]
[1770592179815,7.12751516,88.552,88.52,18.02352965]
[1770592180117,7.12751516,88.552,88.476,39.5586942]
[1770592180118,7.12751516,88.552,88.53,18.02352965]
[1770592180316,7.12751516,88.552,88.54,18.02352965]
[1770592181031,7.12751516,88.552,88.53,18.02352965]
[1770592181321,7.12751516,88.552,88.54,18.02352965]
[1770592182401,4.26694401,88.551,88.52,18.02352965]
[1770592183219,15.55987124,88.551,88.52,18.02352965]
[1770592183589,4.26694401,88.549,88.51,18.02352965]
[1770592183799,4.26694401,88.539,88.5,18.02352965]
[1770592184199,4.26694401,88.537,88.5,18.02352965]
[1770592184508,4.26694401,88.537,88.51,18.02352965]
[1770592184718,7.12222419,88.537,88.52,18.02352965]
[1770592185101,7.12222419,88.537,88.51,18.02352965]
[1770592185415,18.41693713,88.537,88.51,18.02352965]
[1770592185717,7.12189487,88.536,88.52,18.02352965]
[1770592185915,1.1399357,88.536,88.53,18.02352965]
[1770592186122,4.5,88.535,88.5,11.29939217]
[1770592186316,4.5,88.535,88.5,18.02352965]
[1770592186612,1.1399357,88.536,88.52,18.02352965]
[1770592186812,5.6399357,88.536,88.51,18.02352965]
[1770592187032,4.5,88.535,88.51,18.02352965]
[1770592187311,4.5,88.534,88.51,18.02352965]
[1770592187511,4.5,88.534,88.443,5.36086188]
[1770592187512,4.5,88.534,88.475,28.2563214]
[1770592187718,11.63439477,88.534,88.475,28.2563214]
[1770592187893,4.5,88.533,88.475,28.2563214]
[1770592188097,4.5,88.533,88.5,18.02352965]
[1770592188690,7.13439477,88.534,88.52,18.02352965]
[1770592188911,5.62558696,88.534,88.52,18.02352965]
[1770592190703,5.62558696,88.534,88.51,18.02352965]
[1770592191320,5.62558696,88.534,88.52,18.02352965]
[1770592191815,5.62558696,88.534,88.52,17.52352965]
[1770592192517,18.02352965,88.57,88.52,17.52352965]
[1770592192518,15.79079953,88.568,88.52,17.52352965]
[1770592192698,7.12611095,88.563,88.55,18.02352965]
[1770592192899,7.12611095,88.563,88.55,10.50193142]
[1770592193718,7.12611095,88.563,88.54,10.50193142]
[1770592193918,4.5,88.562,88.53,10.50193142]
[1770592194097,7.12611095,88.563,88.55,10.50193142]
[1770592194296,10.50193142,88.59,88.55,10.50193142]
[1770592194297,4.5,88.59,88.55,10.50193142]
[1770592194515,4.5,88.59,88.58,10.50193142]
[1770592194721,30.0,88.581,88.58,10.50193142]
[1770592194907,30.0,88.581,88.57,10.50193142]
[1770592195304,15.78760115,88.593,88.57,10.50193142]
[1770592195507,4.5,88.592,88.57,10.50193142]
[1770592195718,4.5,88.592,88.521,56.48377221]
[1770592195719,4.5,88.592,88.56,10.50193142]
[1770592195903,4.38878786,88.59,88.56,10.50193142]
[1770592196098,4.38878786,88.589,88.56,10.50193142]
[1770592196327,4.38878786,88.588,88.55,10.50193142]
[1770592196503,4.38878786,88.587,88.55,10.50193142]
[1770592196798,4.38878786,88.585,88.55,10.50193142]
[1770592196997,4.38878786,88.579,88.53,10.50193142]
[1770592197214,4.38878786,88.577,88.524,4.40694458]
[1770592197398,4.38878786,88.576,88.53,10.50193142]
[1770592197605,4.38878786,88.575,88.54,10.50193142]
[1770592197815,4.38878786,88.572,88.54,10.50193142]
[1770592198016,7.11479553,88.571,88.54,10.50193142]
[1770592198214,7.11479553,88.571,88.495,56.50011009]
[1770592198215,4.5,88.692,88.56,10.50193142]
[1770592198401,7.12590634,88.602,88.6,10.50193142]
[1770592198607,39.46240922,88.692,88.56,10.50193142]
[1770592198608,4.5,88.678,88.592,39.50695322]
[1770592198814,4.5,88.676,88.592,39.50695322]
[1770592199006,4.5,88.659,88.62,10.50193142]
[1770592199206,4.5,88.659,88.61,10.50193142]
[1770592199406,4.5,88.659,88.592,11.28770092]
[1770592199615,4.5,88.659,88.63,10.50193142]
[1770592199912,4.5,88.659,88.62,10.50193142]
[1770592200311,4.5,88.659,88.592,43.9138978]
[1770592200512,4.5,88.659,88.62,10.50193142]
[1770592200715,4.38878786,88.657,88.597,4.40694458]
[1770592201027,11.27929797,88.658,88.56,10.50193142]
[1770592201028,4.38878786,88.639,88.6,10.50193142]
[1770592201204,4.38878786,88.637,88.6,10.50193142]
[1770592201410,4.38878786,88.636,88.6,10.50193142]
[1770592201610,4.38878786,88.629,88.561,11.29165208]
[1770592201923,5.13032502,88.653,88.561,11.29165208]
[1770592201924,7.11780573,88.628,88.62,10.50193142]
[1770592202110,7.11780573,88.628,88.583,4.40694458]
[1770592202111,7.11780573,88.628,88.59,10.50193142]
[1770592202310,7.11780573,88.628,88.583,4.40694458]
[1770592202511,7.11780573,88.628,88.59,10.50193142]
[1770592202824,10.50193142,88.62,88.58,10.50193142]
[1770592203125,4.38878786,88.619,88.58,10.50193142]
[1770592203423,4.38878786,88.618,88.58,10.50193142]
[1770592204130,9.51911288,88.657,88.611,4.40694458]
[1770592204305,45.08018334,88.731,88.57,11.29050468]
[1770592204306,4.38878786,88.671,88.65,10.50193142]
[1770592204507,7.10841687,88.669,88.66,10.50193142]
[1770592204709,15.66681375,88.668,88.625,4.40694458]
[1770592204933,4.38878786,88.659,88.63,10.50193142]
[1770592205627,4.38878786,88.659,88.57,56.45252342]
[1770592205628,4.38878786,88.639,88.6,10.50193142]
[1770592206331,4.38878786,88.654,88.63,10.50193142]
[1770592206533,4.38878786,88.639,88.575,4.40694458]
[1770592206718,10.50193142,88.62,88.58,10.50193142]
[1770592207026,39.4864505,88.638,88.57,4.40694458]
[1770592207027,4.38878786,88.629,88.57,4.40694458]
[1770592207234,4.38878786,88.629,88.59,10.50193142]
[1770592207614,4.38878786,88.629,88.58,10.50193142]
[1770592207814,4.38878786,88.619,88.58,10.50193142]
[1770592208619,4.38878786,88.619,88.528,56.47880167]
[1770592208620,4.38878786,88.589,88.55,10.50193142]
[1770592209242,4.38878786,88.569,88.53,10.50193142]
[1770592209540,4.38878786,88.569,88.52,10.50193142]
[1770592209829,4.38878786,88.569,88.486,56.50593863]
[1770592209830,4.38878786,88.539,88.5,10.50193142]
[1770592210533,4.38878786,88.529,88.48,4.40694458]
[1770592210718,4.38878786,88.527,88.48,14.908876]
[1770592210919,4.38878786,88.527,88.48,10.50193142]
[1770592211229,10.50193142,88.53,88.436,5.13032502]
[1770592211230,4.38878786,88.541,88.51,10.50193142]
[1770592211627,4.38878786,88.529,88.49,10.50193142]
[1770592211827,4.38878786,88.519,88.466,11.30372312]
[1770592212030,4.38878786,88.519,88.46,4.60694458]
[1770592212031,4.38878786,88.509,88.47,10.50193142]
[1770592212836,4.38878786,88.509,88.46,15.91139361]
[1770592212837,4.38878786,88.507,88.46,10.70193142]
[1770592213026,4.38878786,88.489,88.46,0.2]
[1770592213224,4.38878786,88.479,88.424,4.40694458]
[1770592213419,4.38878786,88.479,88.44,10.50193142]
[1770592213615,10.50193142,88.45,88.409,4.40694458]
[1770592213822,10.50193142,88.45,88.38,0.2]
[1770592213823,4.38878786,88.479,88.44,10.50193142]
[1770592214021,10.50193142,88.47,88.43,14.908876]
[1770592214332,4.38878786,88.479,88.44,10.50193142]
[1770592214526,4.38878786,88.469,88.43,10.50193142]
[1770592214721,4.38878786,88.469,88.414,4.40694458]
[1770592214722,4.38878786,88.459,88.42,10.50193142]
[1770592215020,4.2185454,88.429,88.332,4.37358999]
[1770592215222,4.2185454,88.429,88.257,40.68]
[1770592215223,4.2185454,88.403,88.35,14.87552141]
[1770592215533,4.2185454,88.403,88.37,10.50193142]
[1770592215732,45.1,88.428,88.39,10.50193142]
[1770592215733,4.2185454,88.418,88.39,10.50193142]
[1770592216042,4.2185454,88.399,88.36,10.50193142]
[1770592216241,4.2185454,88.399,88.35,10.50193142]
[1770592216549,4.13099138,88.369,88.332,11.3209175]
[1770592216729,10.50193142,88.39,88.337,4.38445705]
[1770592216932,10.50193142,88.38,88.34,10.50193142]
[1770592217247,10.50193142,88.38,88.337,4.38445705]
[1770592217426,11.31362499,88.389,88.34,10.50193142]
[1770592217748,11.31362499,88.389,88.286,5.13032502]
[1770592217749,10.50193142,88.37,88.33,10.50193142]
[1770592217932,4.08968146,88.393,88.341,4.38445705]
[1770592218130,11.31324101,88.392,88.36,10.50193142]
[1770592218942,11.31324101,88.392,88.351,4.38445705]
[1770592218943,11.31234516,88.399,88.351,4.38445705]
[1770592219128,10.50193142,88.39,88.34,10.50193142]
[1770592219331,10.50193142,88.39,88.293,56.62949483]
[1770592219332,10.50193142,88.36,88.311,4.38445705]
[1770592219536,45.14,88.389,88.321,4.38445705]
[1770592219738,43.68288952,88.399,88.36,10.50193142]
[1770592220045,11.31234516,88.399,88.36,10.50193142]
[1770592220420,11.31234516,88.399,88.32,10.50193142]
[1770592220421,28.27186655,88.428,88.38,10.50193142]
[1770592220625,10.50193142,88.5,88.32,10.50193142]
[1770592220626,11.30876316,88.427,88.39,10.50193142]
[1770592220821,10.50193142,88.42,88.35,4.38445705]
[1770592221032,10.50193142,88.42,88.37,10.50193142]
[1770592221033,15.35997819,88.408,88.37,10.50193142]
[1770592221229,11.31119355,88.408,88.37,10.50193142]
[1770592221453,11.31119355,88.408,88.363,4.38445705]
[1770592221654,11.31119355,88.408,88.343,4.38445705]
[1770592221951,39.58917744,88.408,88.36,10.50193142]
[1770592222154,11.31119355,88.408,88.39,10.50193142]
[1770592222320,11.31119355,88.408,88.39,3.36537416]
[1770592222524,11.31119355,88.408,88.39,10.50193142]
[1770592222725,11.30950781,88.422,88.4,10.50193142]
[1770592223031,11.30950781,88.422,88.4,10.4366972]
[1770592223929,4.04878464,88.409,88.38,10.50193142]
[1770592224124,4.04878464,88.409,88.37,10.50193142]
[1770592224831,4.04878464,88.399,88.36,10.50193142]
[1770592225130,10.50193142,88.4,88.344,4.38445705]
[1770592225131,4.04878464,88.397,88.35,10.50193142]
[1770592225342,4.04878464,88.389,88.332,11.32085193]
[1770592225641,4.04878464,88.379,88.35,10.50193142]
[1770592225947,4.04878464,88.409,88.344,11.3193746]
[1770592226154,4.04878464,88.389,88.35,10.50193142]
[1770592226644,4.04878464,88.359,88.304,4.38445705]
[1770592226959,11.31759433,88.358,88.32,10.50193142]
[1770592227550,4.04878464,88.357,88.32,10.50193142]
[1770592227751,10.50193142,88.35,88.31,10.50193142]
[1770592228051,39.61158016,88.358,88.32,10.50193142]
[1770592228260,45.18,88.365,88.34,10.50193142]
[1770592228544,5.13032502,88.386,88.33,10.50193142]
[1770592228545,43.65364131,88.373,88.33,10.50193142]
[1770592228744,11.31490157,88.38,88.35,10.50193142]
[1770592229064,10.55274472,88.37,88.33,10.55274472]
[1770592229262,4.04878464,88.369,88.32,10.55274472]
[1770592229546,4.04878464,88.359,88.32,10.55274472]
[1770592229844,10.55274472,88.35,88.31,10.55274472]
[1770592230045,10.55274472,88.35,88.301,4.38445705]
[1770592230046,10.55274472,88.34,88.291,4.38445705]
[1770592230257,10.55274472,88.35,88.31,10.55274472]
[1770592230470,96.17778179,88.378,88.341,4.38445705]
[1770592230471,39.60261603,88.378,88.341,4.38445705]
[1770592230751,39.60261603,88.378,88.321,11.32233557]
[1770592230752,10.55274472,88.42,88.37,10.55274472]
[1770592230957,11.31234516,88.399,88.36,10.55274472]
[1770592231126,11.31234516,88.399,88.38,10.55274472]
[1770592231528,4.04878464,88.389,88.34,10.55274472]
[1770592231749,39.59320806,88.399,88.294,11.3257979]
[1770592231750,4.13099138,88.359,88.294,11.3257979]
[1770592231956,4.13099138,88.359,88.33,10.55274472]
[1770592232249,45.2,88.374,88.294,39.64029265]
[1770592232250,4.13099138,88.373,88.294,39.64029265]
[1770592232554,10.55274472,88.36,88.32,10.55274472]
[1770592232933,11.31759433,88.358,88.33,10.55274472]
[1770592233244,4.13099138,88.369,88.33,10.55274472]
[1770592234430,11.31496722,88.379,88.341,4.38445705]
[1770592234656,11.31496722,88.379,88.35,10.55274472]
[1770592234951,28.28530208,88.386,88.35,10.55274472]
[1770592235124,4.13099138,88.385,88.34,10.55274472]
[1770592235329,4.13099138,88.385,88.35,10.55274472]
[1770592235553,4.13099138,88.379,88.34,10.55274472]
[1770592235752,10.55274472,88.36,88.32,10.55274472]
[1770592235943,4.13099138,88.359,88.32,10.55274472]
[1770592236260,4.13099138,88.359,88.296,4.38445705]
[1770592236261,4.13099138,88.339,88.29,10.55274472]
[1770592236757,4.13099138,88.329,88.29,10.55274472]
[1770592236945,4.13099138,88.327,88.27,4.38445705]
[1770592237143,4.13099138,88.319,88.29,10.55274472]
[1770592237534,45.2,88.326,88.254,4.38445705]
[1770592237535,4.13099138,88.309,88.254,4.38445705]
[1770592237856,10.55274472,88.3,88.26,10.55274472]
[1770592238039,4.13099138,88.304,88.26,10.55274472]
[1770592238233,5.13032502,88.317,88.27,10.55274472]
[1770592238433,5.13032502,88.317,88.28,10.55274472]
[1770592238830,10.55274472,88.31,88.26,4.38445705]
[1770592239135,4.13099138,88.307,88.246,4.38445705]
[1770592239330,96.25402,88.308,88.25,10.55274472]
[1770592239331,4.13099138,88.299,88.25,10.55274472]
[1770592239550,4.13099138,88.299,88.26,10.55274472]
[1770592239864,4.13099138,88.299,88.248,4.38445705]
[1770592240058,4.13099138,88.279,88.23,0.2]
[1770592240234,4.13099138,88.279,88.25,10.55274472]
[1770592240434,5.13032502,88.287,88.25,10.55274472]
[1770592240764,4.13099138,88.269,88.23,10.75274472]
[1770592241066,10.55274472,88.26,88.23,1e-08]
[1770592241250,39.65241822,88.267,88.23,10.55274473]
[1770592241429,39.65241822,88.267,88.23,4.38445706]
[1770592241634,39.65241822,88.267,88.24,10.55274472]
[1770592241830,4.13099138,88.259,88.23,1e-08]
[1770592242232,10.55274472,88.25,88.23,1e-08]
[1770592242534,39.65241822,88.267,88.2,0.2648226]
[1770592242535,4.13099138,88.239,88.2,0.2648226]
[1770592242848,10.55274472,88.22,88.2,1e-08]
[1770592243059,10.55274472,88.21,88.2,1e-08]
[1770592243254,11.33671167,88.209,88.2,1e-08]
[1770592243750,11.33439876,88.227,88.2,1e-08]
[1770592243936,10.55274472,88.22,88.2,1e-08]
[1770592244333,10.55274472,88.21,88.2,1e-08]
[1770592244535,11.33439876,88.227,88.201,4.38445705]
[1770592244846,9.80258867,88.227,88.201,4.38445705]
[1770592245254,38.13858558,88.227,88.201,4.38445705]
[1770592245460,14.89935962,88.23,88.2,1e-08]
[1770592245637,10.55274472,88.22,88.2,1e-08]
[1770592245832,10.55274472,88.24,88.2,4.47377993]
[1770592246073,10.55274472,88.24,88.095,45.40505313]
[1770592246074,4.3466149,88.209,88.124,4.47377992]
[1770592246362,5.13032502,88.246,88.107,5.92349068]
[1770592246363,4.3466149,88.146,88.107,5.92349068]
[1770592246579,5.13032502,88.147,88.082,4.47377992]
[1770592246580,10.55274472,88.12,88.082,4.47377992]
[1770592246734,10.55274472,88.12,88.068,4.47377992]
[1770592246931,10.55274472,88.12,88.03,5.13032502]
[1770592246932,10.55274472,88.1,88.06,10.55274472]
[1770592247249,10.55274472,88.08,88.029,4.47377992]
[1770592247552,45.24,88.099,88.06,10.55274472]
[1770592247553,11.35108609,88.098,88.06,10.55274472]
[1770592247934,5.13032502,88.126,88.071,4.47377992]
[1770592248149,49.6066149,88.127,88.071,4.47377992]
[1770592248350,49.6066149,88.127,88.08,10.55274472]
[1770592248351,10.55274472,88.12,88.08,10.55274472]
[1770592248545,11.34751773,88.125,88.08,4.47377992]
[1770592248751,11.34751773,88.125,88.094,4.47377992]
[1770592249037,45.26,88.152,88.11,10.55274472]
[1770592249248,45.26,88.152,88.08,10.55274472]
[1770592249249,10.55274472,88.13,88.08,10.55274472]
[1770592249447,10.55274472,88.1,88.06,10.55274472]
[1770592249665,56.20961134,88.197,88.091,4.47377992]
[1770592249946,14.89935962,88.15,88.095,4.47377992]
[1770592250155,5.36086188,88.184,88.047,96.53934829]
[1770592250156,10.55274472,88.14,88.1,10.55274472]
[1770592250351,14.89935962,88.13,88.048,4.47377992]
[1770592250555,10.55274472,88.12,88.08,10.55274472]
[1770592250754,14.89935962,88.13,88.08,10.55274472]
[1770592251063,4.3466149,88.13,88.12,10.55274472]
[1770592251260,10.55274472,88.17,88.12,15.02652464]
[1770592251438,10.55274472,88.17,88.08,10.55274472]
[1770592251439,11.33876838,88.193,88.15,10.55274472]
[1770592251645,10.55274472,88.17,88.13,10.55274472]
[1770592251950,4.3466149,88.179,88.14,10.55274472]
[1770592252147,10.55274472,88.18,88.14,10.55274472]
[1770592252355,4.3466149,88.179,88.14,10.55274472]
[1770592252561,10.55274472,88.17,88.13,10.55274472]
[1770592252762,10.55274472,88.17,88.078,56.76785329]
[1770592252763,4.3466149,88.17,88.11,10.55274472]
[1770592252946,96.3797803,88.193,88.1,10.55274472]
[1770592252947,10.55274472,88.14,88.1,10.55274472]
[1770592253549,11.34571529,88.139,88.1,10.55274472]
[1770592253747,45.3,88.152,88.12,10.55274472]
[1770592253748,56.6440506,88.152,88.12,10.55274472]
[1770592253949,11.3440506,88.152,88.12,10.55274472]
[1770592254144,45.3,88.169,88.121,4.47377992]
[1770592254368,45.3,88.169,88.096,39.72938611]
[1770592254369,4.3466149,88.204,88.15,10.55274472]
[1770592254669,10.55274472,88.2,88.16,10.55274472]
[1770592254867,10.55274472,88.18,88.139,4.47377992]
[1770592255059,10.55274472,88.17,88.123,4.47377992]
[1770592255265,10.55274472,88.17,88.13,10.55274472]
[1770592255479,39.69649195,88.169,88.123,4.47377992]
[1770592255649,39.69649195,88.169,88.08,10.55274472]
[1770592255650,11.34185484,88.169,88.14,10.55274472]
[1770592255855,11.34185484,88.169,88.131,4.47377992]
[1770592256351,11.34185484,88.169,88.14,10.55274472]
[1770592256547,11.33979701,88.185,88.151,4.47377992]
[1770592256762,11.33979701,88.185,88.091,56.75912586]
[1770592256763,10.55274472,88.18,88.141,4.47377992]
[1770592257174,10.55274472,88.17,88.13,10.55274472]
[1770592257348,10.55274472,88.17,88.126,4.47377992]
[1770592257349,10.55274472,88.14,88.078,28.38379253]
[1770592257551,10.55274472,88.13,88.091,15.82567738]
[1770592257764,28.36230714,88.146,88.101,4.47377992]
[1770592257765,10.55274472,88.14,88.101,4.47377992]
[1770592257972,45.3,88.15,88.101,4.47377992]
[1770592257973,10.55274472,88.13,88.101,4.47377992]
[1770592258675,10.55274472,88.12,88.08,10.55274472]
[1770592259060,28.35830118,88.158,88.11,10.55274472]
[1770592259374,11.34069722,88.178,88.15,10.55274472]
[1770592259562,4.3466149,88.177,88.12,10.55274472]
[1770592259764,39.69244028,88.178,88.09,28.38006584]
[1770592259765,39.69244028,88.178,88.15,10.55274472]
[1770592260068,11.34069722,88.178,88.15,10.55274472]
[1770592260265,11.3400542,88.183,88.16,10.55274472]
[1770592260473,4.3466149,88.169,88.12,10.55274472]
[1770592260674,10.55274472,88.18,88.131,4.47377992]
[1770592260856,10.55274472,88.16,88.115,4.47377992]
[1770592261057,10.55274472,88.15,88.115,4.47377992]
[1770592261472,10.55274472,88.12,88.086,4.47377992]
[1770592261982,10.55274472,88.1,88.051,4.47377992]
[1770592262188,10.55274472,88.09,88.053,11.35677221]
[1770592262358,45.32,88.119,88.071,4.47377992]
[1770592262359,10.55274472,88.11,88.071,4.47377992]
[1770592262558,45.32,88.122,88.081,4.47377992]
[1770592262773,45.32,88.122,88.064,28.38828433]
[1770592262774,45.32,88.122,88.091,4.47377992]
[1770592262983,10.55274472,88.11,88.076,4.47377992]
[1770592263159,10.55274472,88.13,88.086,4.47377992]
[1770592263354,32.71303882,88.133,88.044,11.35791002]
[1770592263355,10.55274472,88.1,88.044,11.35791002]
[1770592263586,10.55274472,88.07,88.04,0.2]
[1770592264071,10.55274472,88.09,88.04,10.75274472]
[1770592264381,4.3466149,88.11,88.06,10.55274472]
[1770592264382,11.35020272,88.105,88.06,10.55274472]
[1770592264580,11.35020272,88.105,88.051,11.35705443]
[1770592264581,10.55274472,88.13,88.08,10.55274472]
[1770592264757,10.55274472,88.13,88.04,0.2]
[1770592264758,10.55274472,88.09,88.04,0.2]
[1770592264962,10.55274472,88.09,88.05,10.55274472]
[1770592265157,4.3466149,88.109,88.06,10.55274472]
[1770592265358,10.55274472,88.11,88.06,10.55274472]
[1770592265661,11.35086663,88.099,88.059,3.60632695]
[1770592265862,39.72803322,88.099,88.06,10.55274472]
[1770592266477,39.22803322,88.099,88.06,10.55274472]
[1770592266678,10.85086663,88.099,88.06,10.55274472]
[1770592266978,10.85086663,88.099,88.04,0.2]
[1770592266979,39.22803322,88.099,88.05,18.21869467]
[1770592267178,11.3501891,88.105,88.07,18.21869467]
[1770592267979,11.3501891,88.105,88.05,11.35712786]
[1770592268170,4.3466149,88.099,88.047,3.60632695]
[1770592268483,11.34738896,88.126,88.081,3.60632695]
[1770592268778,11.34738896,88.126,88.09,18.21869467]
[1770592268958,11.34738896,88.126,88.081,3.60632695]
[1770592269165,4.3466149,88.119,88.07,18.21869467]
[1770592269359,4.3466149,88.119,88.08,18.21869467]
[1770592269572,39.71586137,88.126,88.071,3.60632695]
[1770592269872,39.71586137,88.126,88.09,18.21869467]
[1770592270081,39.71586137,88.126,88.071,3.60632695]
[1770592270375,45.34,88.137,88.1,18.21869467]
[1770592270376,11.34670829,88.132,88.1,18.21869467]
[1770592270780,45.34,88.137,88.11,18.21869467]
[1770592271165,4.3466149,88.165,88.07,11.35455482]
[1770592271166,4.3466149,88.18,88.131,3.60632695]
[1770592271354,4.3466149,88.159,88.11,18.21869467]
[1770592271679,45.34,88.189,88.07,16.48487984]
[1770592271680,11.34121169,88.174,88.13,18.21869467]
[1770592272075,4.3466149,88.169,88.13,18.21869467]
[1770592272278,4.3466149,88.149,88.1,18.21869467]
[1770592272579,4.3466149,88.149,88.062,56.77797571]
[1770592272580,18.21869467,88.15,88.11,18.21869467]
[1770592272780,18.21869467,88.15,88.107,11.3497181]
[1770592272781,39.69424092,88.174,88.13,18.21869467]
[1770592272983,39.69424092,88.174,88.14,18.21869467]
[1770592273481,4.3466149,88.169,88.13,18.21869467]
[1770592273662,11.34198348,88.168,88.13,18.21869467]
[1770592274059,11.34198348,88.168,88.113,28.37240362]
[1770592274060,11.34094836,88.177,88.15,18.21869467]
[1770592274266,18.21869467,88.21,88.17,18.21869467]
[1770592274682,4.3466149,88.209,88.16,18.21869467]
[1770592274863,4.06877309,88.188,88.106,3.60632695]
[1770592275063,45.34,88.217,88.1,18.21869467]
[1770592275064,18.21869467,88.14,88.1,18.21869467]
[1770592275585,11.34713144,88.128,88.08,18.21869467]
[1770592275776,11.34649272,88.133,88.092,3.60632695]
[1770592275963,11.34516986,88.144,88.101,3.60632695]
[1770592276169,18.21869467,88.18,88.131,3.60632695]
[1770592276370,18.21869467,88.18,88.14,18.21869467]
[1770592276583,18.21869467,88.17,88.131,3.60632695]
[1770592276777,22.58710464,88.16,88.11,18.21869467]
[1770592277088,18.21869467,88.17,88.13,18.21869467]
[1770592277270,4.36840997,88.159,88.11,18.21869467]
[1770592277471,18.21869467,88.17,88.12,18.21869467]
[1770592277787,11.34185484,88.169,88.12,18.21869467]
[1770592278184,11.3403114,88.181,88.14,18.21869467]
[1770592278384,11.3403114,88.181,88.141,3.60632695]
[1770592278691,11.3403114,88.181,88.083,5.36086188]
[1770592278692,4.36840997,88.149,88.086,3.60632695]
[1770592278864,18.21869467,88.1,88.056,11.35640955]
[1770592279067,18.21869467,88.09,88.056,11.35640955]
[1770592279497,45.34,88.127,88.04,0.2]
[1770592279498,18.21869467,88.08,88.04,3.80632695]
[1770592279788,4.36840997,88.098,88.04,22.02502162]
[1770592279789,18.21869467,88.09,88.04,22.02502162]